bitfinex-derivatives/quotes_ETHF0:USTF0_20250106
["timestamp","ask_amount","ask_price","bid_price","bid_amount"]
[1736171336281,1.5179,3647.9,3647.4,0.27425]
[1736171336579,0.27426,3647.5,3647.4,2.2002793]
[1736171336882,1.5179,3647.9,3647.2,0.27427]
[1736171336883,0.27427,3647.3,3647.2,0.27427]
[1736171340185,0.27426,3647.4,3647.3,0.27426]
[1736171345891,0.4409,3647.5,3647.1,2.2002793]
[1736171346093,0.27427,3647.2,3647.1,2.2002793]
[1736171346287,0.27427,3647.2,3647.1,2.4745593]
[1736171346584,0.27427,3647.2,3647.1,2.2002793]
[1736171346791,0.27427,3647.2,3647.1,2.4745593]
[1736171347093,1.12654,3647.5,3646.9,40.8]
[1736171347391,0.27429,3647.0,3646.9,40.8]
[1736171347989,0.27429,3647.0,3646.9,40.9049179]
[1736171348392,0.27429,3647.0,3646.9,41.1792179]
[1736171352290,0.27429,3647.0,3646.9,40.9049179]
[1736171352691,0.27429,3647.0,3646.9,41.1792179]
[1736171355701,0.27429,3647.0,3646.9,41.17936924]
[1736171358293,3.6563,3647.2,3646.9,40.90506924]
[1736171358492,0.4409,3647.5,3647.1,2.4745593]
[1736171358493,0.27427,3647.3,3647.1,2.4745593]
[1736171358696,0.27427,3647.3,3647.2,0.37933924]
[1736171358898,0.4409,3647.5,3647.2,0.10506924]
[1736171359100,0.71515,3647.5,3647.4,2.4745393]
[1736171359296,0.71515,3647.5,3647.4,2.57960854]
[1736171360097,0.71515,3647.5,3647.4,0.10506924]
[1736171360502,0.27427,3647.3,3647.2,0.27427]
[1736171360697,0.27427,3647.3,3647.2,0.105027]
[1736171361202,0.27427,3647.3,3647.2,0.10504268]
[1736171362806,0.27428,3647.1,3647.0,0.27429]
[1736171363107,0.27428,3647.1,3647.0,0.37937903]
[1736171363611,0.27428,3647.1,3647.0,0.37939836]
[1736171366712,0.27428,3647.1,3647.0,0.37945273]
[1736171367615,0.69168,3647.1,3647.0,0.37945273]
[1736171368315,0.27428,3647.1,3647.0,0.37945273]
[1736171369007,0.27428,3647.1,3647.0,1.37219337]
[1736171372318,0.27428,3647.1,3647.0,1.37217268]
[1736171372912,0.27428,3647.1,3647.0,1.372172]
[1736171375413,0.68579491,3647.1,3647.0,1.372172]
[1736171376011,0.68579491,3647.1,3647.0,1.37219017]
[1736171378023,0.68579491,3647.1,3647.0,0.10515953]
[1736171378719,0.68579491,3647.1,3647.0,1.37219017]
[1736171379424,0.68579491,3647.1,3647.0,1.26703064]
[1736171379626,4.98930989,3647.1,3647.0,1.09787563]
[1736171379820,4.98930989,3647.1,3647.0,1.37216563]
[1736171381525,4.98930989,3647.1,3647.0,1.26703064]
[1736171381822,4.98930989,3647.1,3647.0,1.37216524]
[1736171382219,4.98930989,3647.1,3647.0,1.37217919]
[1736171384628,4.98930989,3647.1,3647.0,1.09788919]
[1736171385224,4.98930989,3647.1,3647.0,1.09791852]
[1736171385532,4.98930989,3647.1,3647.0,1.37220852]
[1736171388230,4.71502989,3647.1,3647.0,0.10516062]
[1736171388526,4.98930989,3647.1,3647.0,0.10515931]
[1736171388723,4.71502989,3647.1,3646.8,46.37122188]
[1736171388921,4.71502989,3647.1,3646.9,0.10514635]
[1736171389228,4.8251159,3647.1,3647.0,0.10514635]
[1736171390231,5.66826452,3647.1,3647.0,0.10514635]
[1736171391335,10.21910042,3647.1,3647.0,0.10514635]
[1736171395436,0.68579491,3647.1,3647.0,0.10514635]
[1736171396640,0.27428,3647.1,3647.0,0.10514635]
[1736171396935,1.26702064,3647.1,3647.0,0.10514635]
[1736171397634,11.21160456,3647.1,3647.0,0.10514635]
[1736171398142,11.21160456,3647.1,3647.0,0.10518763]
[1736171399932,1.67853555,3647.1,3647.0,0.10518763]
[1736171400134,1.67853555,3647.1,3647.0,0.10517391]
[1736171400544,4.88633555,3647.1,3647.0,0.10517391]
[1736171400734,1.26704064,3646.8,3646.7,4.30418124]
[1736171400945,1.26704064,3646.8,3646.7,2.94378124]
[1736171401133,1.26704064,3646.8,3646.7,0.47594407]
[1736171401134,7.25978128,3646.8,3646.7,0.47594407]
[1736171401336,7.25978128,3646.8,3646.0,10.69629202]
[1736171401337,0.27433,3646.5,3646.4,4.3107089]
[1736171401645,4.56713,3646.5,3646.4,4.3107089]
[1736171402139,5.55987064,3646.5,3646.4,4.3107089]
[1736171402339,4.56713,3646.5,3646.4,4.3107089]
[1736171402546,4.2928,3646.5,3646.3,0.8512]
[1736171402739,4.56713,3646.5,3646.4,0.27433]
[1736171402940,8.83823662,3646.5,3646.4,0.27433]
[1736171403142,5.63043662,3646.5,3646.4,0.27433]
[1736171403345,4.54543662,3646.5,3646.4,0.27433]
[1736171403545,4.54543662,3646.5,3646.4,41.07433]
[1736171404245,3.23320455,3646.5,3646.4,41.07433]
[1736171404842,1.87260455,3646.5,3646.4,41.07433]
[1736171405349,1.87260455,3646.6,3646.5,0.27433]
[1736171405552,1.87260455,3646.6,3646.5,1.26707064]
[1736171406646,1.87260455,3646.6,3646.5,2.25981128]
[1736171407044,8.2045823,3647.0,3646.9,0.2743]
[1736171407644,8.2045823,3647.0,3646.9,0.688]
[1736171408056,7.9302923,3647.0,3646.9,1.5762]
[1736171408448,4.7224923,3647.0,3646.9,1.5762]
[1736171408749,4.3109394,3647.3,3647.2,0.27427]
[1736171408950,4.3109394,3647.3,3647.2,1.26701064]
[1736171409150,4.3109394,3647.3,3647.2,42.06701064]
[1736171410450,0.27425,3647.5,3647.4,0.27426]
[1736171410640,0.27425,3647.5,3647.4,1.26700064]
[1736171410839,4.3109394,3647.8,3647.4,0.99274064]
[1736171411045,0.27424,3647.7,3647.6,0.27424]
[1736171411847,0.68570042,3647.7,3647.6,0.27424]
[1736171413046,0.41146042,3647.7,3647.6,0.27424]
[1736171414845,0.27423,3647.8,3647.7,0.27424]
[1736171415642,0.27422,3648.0,3647.9,0.27421]
[1736171417355,4.3109394,3648.2,3648.1,0.27421]
[1736171417356,0.27421,3648.2,3648.1,0.27421]
[1736171417545,4.7597394,3648.3,3647.8,2.19939204]
[1736171417750,0.27422,3648.1,3648.0,0.27421]
[1736171418051,0.27422,3648.1,3647.6,0.68562]
[1736171418052,4.7597394,3648.3,3647.6,0.68562]
[1736171418251,4.7597394,3648.3,3647.9,0.27421]
[1736171418252,0.27422,3648.0,3647.9,0.27421]
[1736171419153,0.27424,3647.7,3647.6,0.27424]
[1736171419653,0.27424,3647.8,3647.7,0.27423]
[1736171420050,0.68734,3647.8,3647.7,0.27423]
[1736171421757,0.27424,3647.7,3647.6,0.72754]
[1736171421958,0.27421,3648.1,3647.9,0.27422]
[1736171422257,0.27421,3648.1,3648.0,0.27421]
[1736171422752,4.3109394,3648.4,3647.9,5.40719204]
[1736171422959,4.5851194,3648.5,3648.4,0.27418]
[1736171423159,4.3109394,3648.5,3648.3,3.6514]
[1736171423360,4.5851194,3648.5,3648.4,41.07418]
[1736171423757,4.5851194,3648.5,3648.4,40.8]
[1736171424056,4.3109394,3648.5,3648.4,40.8]
[1736171424261,4.3109394,3648.5,3648.4,41.07418]
[1736171424556,4.5851194,3648.5,3648.4,40.8]
[1736171424756,0.27418,3648.5,3648.4,40.8]
[1736171427658,0.2742,3648.2,3648.1,0.2742]
[1736171428256,4.2918,3648.8,3647.8,3.2078]
[1736171428452,0.27422,3647.9,3647.8,3.48203]
[1736171428658,0.27422,3647.9,3647.8,3.2078]
[1736171428963,0.27422,3647.9,3647.8,44.0078]
[1736171430365,0.27422,3647.9,3647.8,40.8]
[1736171430568,4.0483,3648.0,3646.8,5.40719204]
[1736171430864,0.2743,3646.9,3646.8,9.62557521]
[1736171431071,0.2743,3646.9,3646.8,50.42557521]
[1736171431365,0.2743,3646.9,3646.8,50.69987521]
[1736171431669,0.2743,3646.9,3646.8,52.89926725]
[1736171432067,0.2743,3646.9,3646.8,46.48149204]
[1736171432266,0.2743,3646.9,3646.8,44.2821]
[1736171432463,0.2743,3646.9,3646.8,46.48149204]
[1736171432663,0.2743,3646.9,3646.8,46.20719204]
[1736171432858,0.2743,3646.9,3646.8,44.0078]
[1736171436358,0.2743,3646.9,3646.8,40.8]
[1736171446967,0.27432,3646.6,3646.5,0.4324]
[1736171447374,0.68573,3647.0,3646.2,0.4172]
[1736171447375,0.6858,3646.7,3646.2,0.4172]
[1736171447568,0.6858,3646.7,3646.2,0.8542]
[1736171447569,0.27434,3646.3,3646.2,0.8542]
[1736171447979,0.27434,3646.3,3646.2,41.6542]
[1736171451674,0.27434,3646.3,3646.2,41.237]
[1736171452767,0.27439,3645.8,3645.6,2.63389204]
[1736171452972,0.27439,3645.8,3645.7,0.4379]
[1736171453374,0.27439,3645.8,3645.7,41.2379]
[1736171453980,0.27439,3645.8,3645.7,41.51229]
[1736171462380,0.27439,3645.8,3645.7,0.4379]
[1736171462575,0.27439,3645.6,3645.5,5.40719204]
[1736171463183,0.27439,3645.6,3645.5,5.68159204]
[1736171463381,0.27439,3645.6,3645.5,5.40719204]
[1736171463685,0.27439,3645.6,3645.5,5.68159204]
[1736171464081,0.27439,3645.6,3645.5,5.40719204]
[1736171464283,0.27439,3645.6,3645.5,5.68159204]
[1736171464878,0.27439,3645.6,3645.5,5.40719204]
[1736171466287,0.27439,3645.6,3645.5,5.68159204]
[1736171466475,0.27439,3645.6,3645.5,5.40719204]
[1736171467786,0.27439,3645.6,3645.5,3.2078]
[1736171468991,0.27441,3645.4,3645.3,0.4171]
[1736171470688,0.27441,3645.4,3645.3,0.69152]
[1736171470884,0.27441,3645.4,3645.3,0.4171]
[1736171471990,0.27441,3645.4,3645.3,0.69152]
[1736171473779,0.68599,3645.7,3645.3,0.69152]
[1736171473986,0.2744,3645.7,3645.6,2.47378204]
[1736171474583,2.14896223,3645.9,3645.6,2.19939204]
[1736171474790,2.14896223,3645.9,3645.8,3.48218]
[1736171475287,2.14896223,3645.9,3645.8,44.69578]
[1736171475689,4.57289094,3646.3,3646.2,0.27435]
[1736171475690,0.27435,3646.3,3646.2,0.27435]
[1736171476592,0.27434,3646.4,3646.3,0.27433]
[1736171479395,2.14896223,3646.5,3646.0,2.19939204]
[1736171479597,2.14896223,3646.5,3646.4,0.27433]
[1736171479996,2.14896223,3646.5,3646.4,1.12813]
[1736171481100,0.27432,3646.7,3646.6,0.27431]
[1736171481298,0.27432,3646.7,3646.6,2.47370204]
[1736171482000,0.27431,3646.8,3646.7,0.2743]
[1736171482193,0.27431,3646.8,3646.7,3.4821]
[1736171482594,2.14896223,3646.9,3646.8,0.2743]
[1736171483109,2.14896223,3646.9,3646.8,41.0743]
[1736171483703,0.27427,3647.3,3647.2,0.27427]
[1736171484305,0.27427,3647.3,3647.2,41.07427]
[1736171485602,0.27427,3647.3,3647.2,0.27427]
[1736171486304,0.27427,3647.4,3647.3,0.27426]
[1736171488710,5.77386223,3647.7,3647.0,43.87069204]
[1736171488910,0.27425,3647.6,3647.5,0.27424]
[1736171489514,0.27426,3647.5,3647.4,0.27426]
[1736171491111,0.27426,3647.4,3647.3,2.47365204]
[1736171492314,0.27425,3647.5,3647.4,0.27424]
[1736171493215,3.6249,3647.7,3647.3,2.19939204]
[1736171493408,0.27425,3647.6,3647.5,0.27424]
[1736171493616,0.4171,3647.7,3647.3,2.19939204]
[1736171493811,0.4171,3647.7,3647.6,2.47363204]
[1736171494014,3.21933551,3648.0,3647.6,2.47363204]
[1736171494015,2.14896223,3648.0,3647.6,5.40719204]
[1736171494320,2.14896223,3648.0,3647.9,2.47361204]
[1736171494615,2.14896223,3648.0,3647.9,43.27361204]
[1736171494808,2.14896223,3648.0,3647.9,41.07422]
[1736171495013,2.14896223,3648.0,3647.9,43.27361204]
[1736171495512,0.27418,3648.5,3648.4,0.27418]
[1736171497304,0.72347,3648.6,3648.5,0.27418]
[1736171498314,0.4493,3648.6,3648.5,0.27418]
[1736171498708,0.8628,3648.9,3648.4,0.8521]
[1736171498913,0.27416,3648.8,3648.7,0.27415]
[1736171500319,0.27416,3648.8,3648.7,2.47354204]
[1736171500513,1.3137,3648.9,3648.7,2.19939204]
[1736171500817,3.2078,3649.0,3648.7,2.19939204]
[1736171500818,3.2078,3649.0,3648.9,0.27415]
[1736171501315,3.2078,3649.0,3648.9,41.07415]
[1736171501820,0.27411,3649.5,3649.4,0.2741]
[1736171502116,1.14521,3649.5,3649.4,0.2741]
[1736171502317,0.8711,3649.5,3649.4,2.47349204]
[1736171502713,3.2078,3649.6,3649.5,0.2741]
[1736171502912,0.27408,3649.8,3649.7,0.27408]
[1736171503411,2.57426223,3650.1,3650.0,0.27406]
[1736171503618,2.57426223,3650.1,3650.0,2.47345204]
[1736171503619,0.07496224,3650.1,3650.0,2.47345204]
[1736171503811,0.27403,3650.5,3650.4,0.27403]
[1736171504013,0.34898224,3650.6,3650.5,0.27403]
[1736171504213,0.34898224,3650.6,3650.5,40.8]
[1736171505023,0.27402,3650.6,3650.5,40.8]
[1736171506018,0.8674,3650.7,3650.5,40.8]
[1736171506218,0.8674,3650.7,3650.6,0.27402]
[1736171506715,0.8674,3650.7,3650.5,41.07402]
[1736171506915,1.14142,3650.7,3650.5,41.07402]
[1736171507116,1.14142,3650.7,3650.3,3.2078]
[1736171507117,0.8674,3650.7,3650.3,3.2078]
[1736171507316,0.27403,3650.4,3650.3,3.2078]
[1736171508422,0.27403,3650.4,3650.3,3.48184]
[1736171508819,0.8674,3650.7,3650.3,3.2078]
[1736171509025,0.8674,3650.7,3650.6,2.47341204]
[1736171509224,1.14141,3650.7,3650.6,2.47341204]
[1736171511426,1.14141,3650.7,3650.6,2.19939204]
[1736171512026,0.27403,3650.4,3650.3,3.2078]
[1736171512326,0.27407,3649.9,3649.8,0.41]
[1736171512521,0.27407,3650.0,3649.8,0.27408]
[1736171512921,0.4434,3650.3,3650.0,0.27406]
[1736171513121,0.27405,3650.2,3650.1,2.47345204]
[1736171513318,1.083,3650.4,3650.1,2.19939204]
[1736171513521,0.27402,3650.6,3650.5,0.27403]
[1736171513728,4.0752,3650.7,3650.5,2.19939204]
[1736171513931,3.6499,3650.7,3650.6,0.27402]
[1736171514131,0.274,3650.9,3650.7,0.27401]
[1736171514320,0.274,3650.8,3650.7,0.27401]
[1736171514628,0.27401,3650.7,3650.6,0.70112]
[1736171515226,0.4461,3651.0,3650.6,0.4271]
[1736171515423,0.27401,3650.8,3650.7,0.27401]
[1736171515618,0.27401,3650.7,3650.6,0.4271]
[1736171516028,0.27401,3650.7,3650.6,0.70112]
[1736171518431,0.27401,3650.8,3650.7,0.274]
[1736171520131,0.274,3650.9,3650.8,0.274]
[1736171520335,3.6483,3651.2,3650.8,2.19939204]
[1736171520631,0.274,3650.9,3650.8,0.274]
[1736171521628,0.274,3650.9,3650.8,41.074]
[1736171521835,0.27399,3651.0,3650.9,0.27399]
[1736171522335,0.27399,3651.1,3651.0,0.27398]
[1736171522537,0.274,3651.0,3650.9,0.27399]
[1736171523728,0.274,3651.0,3650.9,0.70119]
[1736171524132,0.274,3651.0,3650.9,0.4272]
[1736171524841,0.274,3651.0,3650.9,0.7012]
[1736171525833,0.4405,3651.2,3650.9,0.4272]
[1736171526031,0.4405,3651.2,3651.0,0.27398]
[1736171526032,0.27399,3651.1,3651.0,0.27398]
[1736171526234,0.27399,3651.0,3650.9,0.70119]
[1736171529341,0.27399,3651.0,3650.9,1.14919]
[1736171530237,0.27399,3651.0,3650.8,42.99939204]
[1736171530238,0.274,3650.9,3650.8,43.27338204]
[1736171530443,0.274,3650.9,3650.8,2.47338204]
[1736171530945,0.274,3650.9,3650.8,43.27338204]
[1736171531833,0.4405,3651.2,3650.8,42.99939204]
[1736171532038,0.27399,3651.1,3651.0,0.27398]
[1736171532237,0.274,3651.0,3650.9,0.27399]
[1736171532842,0.8945,3651.3,3650.8,42.99939204]
[1736171532843,0.4532,3651.3,3650.8,42.99939204]
[1736171533040,0.274,3651.0,3650.9,2.47338204]
[1736171533344,0.27399,3651.1,3651.0,0.27398]
[1736171533542,0.27399,3651.1,3651.0,0.72648]
[1736171537045,0.4532,3651.3,3651.0,0.4525]
[1736171537348,0.4244,3651.4,3651.0,0.4525]
[1736171537349,0.27398,3651.2,3651.1,0.27397]
[1736171538447,0.4244,3651.4,3651.0,0.4525]
[1736171538746,0.27397,3651.4,3651.3,0.27397]
[1736171539044,3.6398,3651.6,3651.2,2.19939204]
[1736171539045,3.2078,3651.6,3651.2,2.19939204]
[1736171539242,0.27396,3651.5,3651.4,0.27395]
[1736171540848,0.27396,3651.4,3651.3,0.71586]
[1736171542053,0.27396,3651.5,3651.4,0.27395]
[1736171543347,0.4196,3651.7,3651.3,0.4419]
[1736171543556,0.27394,3651.7,3651.6,2.47332204]
[1736171544046,0.27394,3651.7,3651.6,43.27332204]
[1736171544245,0.8662,3652.0,3651.6,42.99939204]
[1736171544446,0.8662,3652.0,3651.6,43.27333204]
[1736171544447,0.27394,3651.7,3651.6,43.27333204]
[1736171544952,0.27393,3651.9,3651.8,0.27392]
[1736171545153,0.27394,3651.8,3651.7,0.27393]
[1736171545747,0.27394,3651.8,3651.7,0.27108643]
[1736171546053,0.27393,3651.9,3651.8,0.27392]
[1736171546749,0.8662,3652.0,3651.6,43.44779204]
[1736171546944,0.27394,3651.8,3651.7,0.27393]
[1736171547745,0.8662,3652.0,3651.6,43.44779204]
[1736171547951,0.4454,3652.0,3651.9,0.27392]
[1736171548151,3.46961519,3652.1,3652.0,0.27391]
[1736171548357,0.27391,3652.0,3651.9,2.47330204]
[1736171548655,3.19570519,3652.1,3651.6,41.2484]
[1736171548656,3.19570519,3652.1,3651.6,43.44779204]
[1736171548953,0.27394,3651.7,3651.6,2.47333204]
[1736171550855,0.27394,3651.7,3651.6,2.19939204]
[1736171551256,0.27394,3651.6,3651.5,41.07395]
[1736171551458,1.13024,3651.6,3651.5,41.07395]
[1736171552753,1.13024,3651.6,3651.5,40.8]
[1736171553056,0.27396,3651.4,3651.3,2.19939204]
[1736171553455,0.27396,3651.4,3651.3,42.99939204]
[1736171553655,0.8563,3651.6,3651.3,42.99939204]
[1736171553855,0.4419,3651.8,3651.4,3.2078]
[1736171554060,0.27394,3651.7,3651.6,0.27394]
[1736171554368,0.27395,3651.6,3651.5,0.27394]
[1736171555857,0.4419,3651.8,3651.7,0.27393]
[1736171555858,0.27394,3651.8,3651.7,0.27393]
[1736171556255,0.27394,3651.7,3651.6,0.27394]
[1736171556461,0.27394,3651.6,3651.5,2.19939204]
[1736171556859,0.27394,3651.6,3651.5,2.47334204]
[1736171560867,0.27394,3651.7,3651.6,0.27394]
[1736171561461,3.19570519,3651.8,3651.5,2.19939204]
[1736171561669,3.19570519,3651.8,3651.6,0.4172]
[1736171561856,3.19570519,3651.8,3651.7,0.27394]
[1736171562056,3.19570519,3651.8,3651.5,5.40719204]
[1736171562363,0.27394,3651.6,3651.5,2.47334204]
[1736171562671,0.27396,3651.4,3651.3,41.51376]
[1736171565969,0.68396,3651.4,3651.3,41.51376]
[1736171568470,0.68396,3651.4,3651.3,0.27396]
[1736171568671,0.27397,3651.3,3651.2,2.47336204]
[1736171570286,3.19570519,3651.5,3651.4,0.27396]
[1736171570485,3.19570519,3651.5,3651.4,3.48176]
[1736171570987,3.19570519,3651.6,3651.5,0.27395]
[1736171571184,3.19570519,3651.6,3651.5,2.90534204]
[1736171571390,3.19570519,3651.6,3651.5,2.47334204]
[1736171572085,0.27393,3651.8,3651.7,0.27394]
[1736171576397,3.64130519,3651.9,3651.5,2.19939204]
[1736171576692,3.19570519,3651.9,3651.8,0.27393]
[1736171576889,3.46962519,3651.9,3651.8,0.27393]
[1736171577890,0.68488973,3651.9,3651.8,0.27393]
[1736171578289,0.68488973,3651.9,3651.5,2.19939204]
[1736171578290,0.41096973,3651.9,3651.5,2.19939204]
[1736171578495,0.27394,3651.7,3651.6,0.27394]
[1736171580190,0.27394,3651.6,3651.5,2.47333204]
[1736171581093,0.68490973,3651.7,3651.6,0.27394]
[1736171581787,3.50503753,3651.7,3651.6,0.70714]
[1736171582485,3.23109753,3651.7,3651.4,48.51744143]
[1736171582694,0.27395,3651.5,3651.4,4.23568143]
[1736171582890,4.56275,3651.5,3651.4,4.23568143]
[1736171583495,1.35495,3651.5,3651.4,4.23568143]
[1736171583692,4.56275,3651.5,3651.4,4.23568143]
[1736171584194,11.48819204,3651.5,3651.2,6.35352214]
[1736171584398,11.48819204,3651.5,3650.8,10.58920357]
[1736171584399,0.274,3650.9,3650.8,4.28972597]
[1736171584602,0.274,3650.9,3650.8,45.08972597]
[1736171585300,0.274,3650.8,3650.7,6.35352214]
[1736171585597,0.27402,3650.6,3650.5,3.92312]
[1736171585793,0.27402,3650.7,3650.6,0.27401]
[1736171585994,0.27402,3650.7,3650.6,2.47340204]
[1736171586293,4.72032017,3650.9,3650.6,2.19939204]
[1736171586499,4.72032017,3650.9,3650.8,0.274]
[1736171586900,4.3093394,3650.9,3650.8,0.274]
[1736171587101,4.5833394,3650.9,3650.8,41.074]
[1736171588202,1.96502,3651.4,3650.9,0.274]
[1736171588203,3.50381881,3651.0,3650.9,0.274]
[1736171588806,3.50381881,3651.0,3650.9,3.32569204]
[1736171589802,3.22982881,3651.0,3650.9,3.32569204]
[1736171590505,3.22982881,3651.0,3650.9,6.53349204]
[1736171591306,0.27398,3651.2,3651.1,0.27397]
[1736171594409,0.27398,3651.1,3651.0,0.70478]
[1736171595405,0.27398,3651.1,3651.0,0.4308]
[1736171595813,0.27398,3651.1,3651.0,0.70479]
[1736171596204,3.50380881,3651.2,3651.1,0.27398]
[1736171596409,3.50379881,3651.2,3651.1,2.47337204]
[1736171597510,0.27397,3651.2,3651.1,2.47337204]
[1736171600012,3.91485029,3651.2,3651.1,2.47337204]
[1736171601415,3.50379881,3651.2,3651.1,2.47337204]
[1736171603519,3.22982881,3651.2,3651.1,2.47337204]
[1736171605715,0.27397,3651.3,3651.2,0.27397]
[1736171605716,3.50379881,3651.3,3651.2,0.27397]
[1736171608317,3.22982881,3651.3,3651.2,0.27397]
[1736171608715,3.50379881,3651.3,3651.2,0.27397]
[1736171608912,3.22982881,3651.3,3651.2,0.27397]
[1736171610224,3.50379881,3651.3,3651.2,0.27397]
[1736171610822,3.22982881,3651.3,3651.2,0.27397]
[1736171611212,3.50379881,3651.3,3651.2,0.27397]
[1736171612123,3.91483685,3651.3,3651.2,0.27397]
[1736171612425,0.27397,3651.3,3651.2,0.27397]
[1736171614125,0.27396,3651.5,3651.4,0.27395]
[1736171616529,0.27397,3651.4,3651.3,0.27396]
[1736171617829,0.27397,3651.3,3651.2,0.27397]
[1736171618027,0.27397,3651.2,3651.1,2.47337204]
[1736171618532,0.27397,3651.2,3651.1,0.27398]
[1736171618730,3.61883586,3651.4,3650.5,5.40719204]
[1736171618931,0.274,3651.0,3650.9,0.27399]
[1736171620527,0.68503586,3651.0,3650.9,0.27399]
[1736171622032,0.274,3651.0,3650.9,0.27399]
[1736171624223,0.274,3651.0,3650.9,41.07399]
[1736171626737,0.68506288,3651.0,3650.9,41.07399]
[1736171627028,0.68506288,3651.0,3650.9,42.06464943]
[1736171628835,0.41106288,3651.0,3650.9,42.06464943]
[1736171631041,4.30902918,3651.1,3650.9,42.78131886]
[1736171631236,4.30902918,3651.1,3651.0,0.27399]
[1736171631939,0.27398,3651.2,3651.1,0.27398]
[1736171632239,0.27398,3651.2,3651.1,1.26463943]
[1736171632438,4.58299918,3651.3,3651.2,0.27397]
[1736171632635,4.58299918,3651.3,3651.2,1.12367]
[1736171632939,0.27397,3651.3,3651.2,1.56197]
[1736171634131,0.68501275,3651.3,3651.2,1.56197]
[1736171635538,0.41104275,3651.3,3651.2,1.56197]
[1736171637136,4.31177005,3651.3,3651.2,1.56197]
[1736171637537,4.58574005,3651.3,3651.2,1.56197]
[1736171637935,4.31177005,3651.3,3651.2,1.56197]
[1736171638641,0.41104275,3651.3,3651.2,1.56197]
[1736171639633,5.66024648,3651.5,3651.4,0.27396]
[1736171640840,4.904451,3651.5,3651.4,0.27396]
[1736171643348,10.29073748,3651.5,3651.4,0.27396]
[1736171645942,10.01677748,3651.5,3651.4,0.27396]
[1736171646149,4.630491,3651.5,3651.4,0.27396]
[1736171646648,4.904441,3651.5,3651.4,0.27396]
[1736171647749,4.99628212,3651.5,3651.4,0.27396]
[1736171648338,4.72233212,3651.5,3651.4,0.27396]
[1736171648748,4.99628212,3651.5,3651.4,0.27396]
[1736171648950,4.31128937,3651.5,3651.4,0.27396]
[1736171649152,2.95048937,3651.5,3651.4,0.27396]
[1736171649650,2.95048937,3651.5,3651.4,41.07396]
[1736171650248,2.1548622,3651.6,3651.4,51.20128254]
[1736171650444,2.1548622,3651.6,3651.5,5.46306886]
[1736171650646,0.41104275,3652.0,3651.9,0.27392]
[1736171650944,0.41104275,3652.0,3651.9,5.46303886]
[1736171651144,0.41104275,3652.0,3651.9,5.6749869]
[1736171652142,0.70768,3652.5,3652.4,0.27388]
[1736171654551,0.4338,3652.5,3652.4,0.27388]
[1736171655146,5.38628648,3653.0,3652.9,0.27385]
[1736171655453,0.27388,3652.5,3652.4,3.48168]
[1736171655650,0.27388,3652.5,3652.4,3.2078]
[1736171657349,0.27392,3651.9,3651.8,3.2078]
[1736171658158,0.27394,3651.6,3651.5,41.07395]
[1736171658352,0.27394,3651.7,3651.5,41.07395]
[1736171658549,0.27394,3651.6,3651.5,41.07395]
[1736171658750,0.8419,3651.8,3651.6,0.27394]
[1736171658751,0.27394,3651.7,3651.6,0.27394]
[1736171659151,0.27394,3651.7,3651.1,6.87510487]
[1736171659152,3.2078,3651.7,3651.1,6.87510487]
[1736171659357,0.27397,3651.2,3651.1,6.70448487]
[1736171659560,0.27397,3651.2,3651.1,6.43050487]
[1736171659756,0.27397,3651.2,3651.1,40.8]
[1736171659956,0.27397,3651.2,3651.1,41.07398]
[1736171660157,4.2888,3651.7,3651.2,0.27397]
[1736171660461,0.27397,3651.3,3651.2,0.27397]
[1736171661355,0.82404445,3651.6,3651.1,42.9932669]
[1736171661554,1.09799445,3651.6,3651.4,0.27395]
[1736171661755,1.09799445,3651.6,3651.1,43.4124669]
[1736171661956,0.27395,3651.5,3651.4,0.27395]
[1736171662263,0.27397,3651.4,3651.3,0.27397]
[1736171662553,0.413,3651.6,3651.5,0.27395]
[1736171662554,0.68694,3651.6,3651.5,0.27395]
[1736171662749,0.413,3651.6,3651.5,0.27395]
[1736171663148,0.8419,3651.8,3651.7,0.27394]
[1736171663149,0.69993,3651.8,3651.7,0.27394]
[1736171663659,0.27391,3652.1,3652.0,0.27391]
[1736171663854,3.2078,3652.5,3651.8,0.445]
[1736171663855,4.2888,3652.5,3651.8,0.445]
[1736171664050,0.27392,3651.9,3651.8,0.27392]
[1736171664250,0.27392,3651.9,3651.8,40.8]
[1736171664561,0.27392,3651.9,3651.8,41.07393]
[1736171666159,0.27393,3651.8,3651.7,0.27393]
[1736171669366,0.4425,3652.0,3651.5,40.8]
[1736171669560,0.27394,3651.6,3651.5,41.07395]
[1736171670158,0.4127,3651.6,3651.4,5.6750169]
[1736171670362,0.27395,3651.5,3651.4,5.6750169]
[1736171670866,0.27395,3651.5,3651.4,46.4750169]
[1736171674967,0.27395,3651.5,3651.4,46.2010669]
[1736171675271,0.27395,3651.5,3651.4,46.4750269]
[1736171676167,0.27395,3651.5,3651.4,44.28176]
[1736171676671,0.27395,3651.5,3651.4,41.07396]
[1736171676973,0.27395,3651.5,3651.4,40.8]
[1736171679078,0.27395,3651.5,3651.4,41.07396]
[1736171679573,0.4127,3651.6,3651.4,42.9932669]
[1736171679874,0.68665,3651.6,3651.5,0.27395]
[1736171681768,4.57570053,3651.9,3651.8,0.27393]
[1736171682066,0.27392,3651.9,3651.8,0.27393]
[1736171682462,0.27394,3651.7,3651.6,0.27394]
[1736171685077,0.27394,3651.7,3651.5,1.2891]
[1736171685078,0.4248,3651.8,3651.5,1.2891]
[1736171685280,0.27394,3651.6,3651.5,0.27395]
[1736171686176,0.27395,3651.5,3651.4,41.07395]
[1736171688373,0.27395,3651.6,3651.5,0.27394]
[1736171689276,0.27394,3651.7,3651.6,0.27394]
[1736171689573,0.69873,3651.8,3651.7,0.27394]
[1736171689778,4.30178053,3652.1,3651.7,2.1932669]
[1736171689978,5.00959053,3652.1,3652.0,0.27391]
[1736171690174,4.30178053,3652.1,3652.0,2.4671769]
[1736171690582,0.41095425,3652.1,3652.0,2.4671769]
[1736171691380,0.41095425,3652.1,3652.0,5.6749769]
[1736171692081,4.30178053,3652.5,3652.4,0.27388]